bitfinex-derivatives/quotes_ETHF0:USTF0_20260204
["timestamp","ask_amount","ask_price","bid_price","bid_amount"]
[1770242008659,0.23695,2114.8,2113.9,20.01379668]
[1770242009061,7.00768209,2114.4,2113.8,0.00340333]
[1770242009262,7.00768209,2114.2,2113.8,11.25403424]
[1770242009563,7.00768209,2114.2,2113.8,10.78375164]
[1770242009763,7.00768209,2114.2,2113.2,7.67124577]
[1770242009965,7.00768209,2114.2,2113.3,10.78375164]
[1770242010364,7.00768209,2114.2,2113.3,10.78905559]
[1770242010664,0.23704,2114.0,2113.3,10.78905559]
[1770242010865,7.01299613,2114.0,2113.3,10.78905559]
[1770242011064,0.23706,2113.8,2113.3,10.78905559]
[1770242011264,0.00531404,2114.0,2113.4,7.67124577]
[1770242011763,0.00531404,2114.0,2113.6,7.67124577]
[1770242012266,0.00531404,2114.0,2113.7,10.78375164]
[1770242012461,0.23699,2114.4,2113.7,10.78375164]
[1770242013360,7.01332153,2114.4,2113.7,10.78375164]
[1770242013556,7.01332153,2114.4,2111.7,1.09156]
[1770242013557,0.2371,2113.5,2112.8,7.67124577]
[1770242013759,0.473,2113.7,2112.8,7.67124577]
[1770242013955,0.473,2113.7,2113.0,7.67655346]
[1770242014162,0.473,2113.7,2113.0,7.67124577]
[1770242014359,0.473,2114.2,2113.5,0.00530769]
[1770242014559,0.473,2114.2,2113.5,7.67656703]
[1770242014763,0.473,2114.2,2113.6,9.77214164]
[1770242015472,7.00768209,2114.0,2113.5,9.26137164]
[1770242015765,0.473,2114.2,2113.5,9.27200059]
[1770242016272,1.09033,2114.1,2113.5,9.26137164]
[1770242016466,8.09801209,2114.1,2113.5,9.26548224]
[1770242017162,7.00768209,2113.9,2112.8,7.67124577]
[1770242017367,7.00768209,2113.9,2112.9,9.26137164]
[1770242017562,0.473,2114.2,2113.0,7.67124577]
[1770242017764,0.23705,2113.9,2113.0,7.67124577]
[1770242018064,7.00768209,2114.0,2113.1,16.93261741]
[1770242018270,0.473,2114.2,2113.2,7.67124577]
[1770242018470,0.473,2114.2,2113.4,7.68187472]
[1770242018969,0.473,2114.2,2113.5,9.27200059]
[1770242019470,0.473,2114.2,2113.6,0.01062895]
[1770242019765,0.473,2114.2,2113.7,7.68187472]
[1770242019966,0.473,2114.6,2114.0,7.67124577]
[1770242020265,0.23695,2114.8,2114.0,7.67124577]
[1770242020470,0.23695,2114.8,2114.3,7.68187472]
[1770242020670,0.23695,2114.8,2114.3,7.67124577]
[1770242020972,7.01307515,2114.8,2113.1,7.67124577]
[1770242021173,0.23698,2114.5,2113.6,7.67124577]
[1770242021672,0.23698,2114.5,2113.7,16.37079636]
[1770242021872,0.23698,2114.5,2113.7,7.67124577]
[1770242022168,0.23699,2114.4,2113.8,8.68892164]
[1770242022368,0.23699,2114.4,2113.5,8.68892164]
[1770242022569,0.23699,2114.4,2113.5,16.36016741]
[1770242022871,39.71814503,2114.8,2113.5,16.36016741]
[1770242022872,0.00539306,2114.8,2113.8,7.67124577]
[1770242023071,3.95094454,2114.7,2113.8,7.67124577]
[1770242023274,0.00539306,2114.8,2114.0,7.68187472]
[1770242023674,0.23694,2114.9,2114.4,7.67124577]
[1770242024068,0.23694,2114.9,2114.5,8.69955059]
[1770242024269,0.23694,2114.9,2114.3,0.01062895]
[1770242024469,3.96057452,2114.8,2114.3,0.01062895]
[1770242024671,0.23698,2114.5,2114.4,7.13991164]
[1770242024873,7.24466209,2114.5,2113.5,7.67124577]
[1770242025171,3.95997838,2114.4,2113.5,7.67124577]
[1770242025368,7.24466209,2114.5,2113.6,8.08079764]
[1770242025673,3.96293446,2114.4,2113.7,7.67124577]
[1770242025870,0.23698,2114.5,2113.8,0.01062895]
[1770242026070,0.23698,2114.5,2113.9,7.68187472]
[1770242026071,3.9638969,2114.4,2113.9,7.68187472]
[1770242026270,0.23698,2114.5,2113.9,14.81647236]
[1770242026468,3.96611308,2114.4,2114.0,0.01062895]
[1770242026673,0.23698,2114.5,2114.0,0.01062895]
[1770242026874,3.96696618,2114.4,2114.1,7.13459764]
[1770242027075,46.72453008,2114.8,2114.1,7.14522659]
[1770242027368,39.94969197,2114.9,2114.4,7.35825018]
[1770242027770,39.71275197,2115.1,2114.5,7.14522659]
[1770242027971,0.473,2115.2,2114.5,0.01062895]
[1770242028171,0.23697,2114.6,2114.5,6.64625764]
[1770242028475,0.24279765,2114.6,2113.7,7.39902211]
[1770242028675,0.24279765,2114.6,2114.0,0.01062895]
[1770242029166,0.24279765,2114.6,2114.2,0.01062895]
[1770242029366,0.24279765,2114.6,2114.3,6.64625764]
[1770242029570,0.00582765,2114.6,2114.2,7.4045788]
[1770242029765,7.00768209,2115.0,2114.2,7.4045788]
[1770242029967,7.24460209,2115.1,2114.4,0.01062895]
[1770242030372,0.23692,2115.1,2114.5,6.65688659]
[1770242030571,0.473,2115.2,2114.6,0.01062895]
[1770242030874,0.23695,2114.8,2113.8,13.98035375]
[1770242031077,8.09760209,2114.9,2113.8,13.98035375]
[1770242031374,39.71275197,2115.0,2111.8,7.67124577]
[1770242031375,7.00768209,2113.2,2111.8,7.67124577]
[1770242031576,0.23721,2112.5,2111.3,7.67124577]
[1770242031775,7.24491209,2112.4,2111.3,7.67124577]
[1770242031974,40.28629801,2112.8,2111.9,8.63314698]
[1770242032177,40.28629801,2112.8,2111.1,7.67124577]
[1770242032378,40.28629801,2112.8,2111.5,7.67124577]
[1770242032379,8.33980769,2112.8,2111.5,7.67124577]
[1770242032578,0.0039356,2112.8,2111.7,7.67124577]
[1770242032980,0.0039356,2112.8,2111.8,8.63314698]
[1770242033279,0.0039356,2112.8,2111.9,8.63314698]
[1770242033475,0.0039356,2112.8,2112.1,7.67124577]
[1770242033776,0.0039356,2112.8,2111.6,0.9471]
[1770242033777,0.473,2113.1,2112.3,7.67124577]
[1770242034178,40.52337801,2113.6,2112.7,8.62531124]
[1770242034179,0.23708,2113.6,2112.7,8.62531124]
[1770242034379,0.473,2113.9,2112.7,7.66341003]
[1770242034679,0.47782377,2113.9,2113.1,7.66341003]
[1770242035076,0.47782377,2113.9,2113.2,0.96190121]
[1770242035380,0.47782377,2113.9,2113.4,7.66341003]
[1770242035578,6.714383,2115.0,2112.7,0.0045424]
[1770242035579,0.473,2114.5,2113.7,7.66341003]
[1770242035980,0.473,2114.5,2112.8,7.66341003]
[1770242036175,0.473,2114.5,2113.4,7.66341003]
[1770242036375,47.70429318,2115.1,2113.7,7.66341003]
[1770242036580,7.41799517,2115.1,2113.7,7.66341003]
[1770242036778,8.50797517,2114.8,2113.5,7.66341003]
[1770242037375,0.23698,2114.6,2113.5,7.66341003]
[1770242037675,8.50827517,2114.3,2112.8,7.66341003]
[1770242037878,0.23702,2114.2,2113.0,7.66341003]
[1770242038180,0.473,2114.3,2113.2,8.62531124]
[1770242038482,7.89099517,2114.3,2113.2,7.66341003]
[1770242038878,9.21825517,2114.3,2113.2,7.66341003]
[1770242039384,3.85316949,2114.2,2113.2,7.66341003]
[1770242039578,3.85316949,2114.1,2113.2,7.66341003]
[1770242039881,3.85316949,2114.0,2113.2,7.66341003]
[1770242040182,9.21825517,2114.3,2113.2,7.66341003]
[1770242040379,8.73509881,2113.7,2112.7,0.0045424]
[1770242040683,8.97248881,2113.2,2111.9,7.44042898]
[1770242040976,11.49599815,2113.1,2111.9,7.44042898]
[1770242041177,11.49599815,2113.1,2111.6,8.38752898]
[1770242041178,8.73550881,2112.9,2111.6,8.38752898]
[1770242041377,4.08861934,2112.8,2111.8,7.44042898]
[1770242041585,0.0049591,2112.8,2112.0,7.44042898]
[1770242041774,0.0049591,2112.8,2111.9,0.96644361]
[1770242041977,0.0049591,2112.8,2112.0,0.96644361]
[1770242042179,0.0049591,2112.8,2111.9,0.96644361]
[1770242042379,0.0049591,2112.8,2112.2,7.44042898]
[1770242042575,0.473,2113.2,2112.7,0.96644361]
[1770242042774,0.473,2113.2,2112.6,0.96644361]
[1770242043177,0.473,2113.2,2112.8,0.96644361]
[1770242043378,8.11754881,2113.2,2112.1,7.44042898]
[1770242043579,0.47750056,2113.2,2112.3,7.44042898]
[1770242043782,0.474,2113.7,2112.8,7.44042898]
[1770242044083,3.84257943,2113.6,2112.8,7.44042898]
[1770242044277,0.474,2113.7,2112.8,7.44042898]
[1770242044483,0.474,2113.7,2112.9,0.96644361]
[1770242044686,0.474,2113.7,2113.2,8.40687259]
[1770242044984,0.47888195,2113.7,2113.2,7.44042898]
[1770242045186,0.47888195,2113.7,2112.9,7.44042898]
[1770242045387,7.64454881,2113.5,2112.2,8.40687259]
[1770242045585,7.64454881,2113.5,2112.2,7.44042898]
[1770242045887,3.86996945,2113.4,2112.4,0.96644361]
[1770242046080,0.23709,2113.6,2112.6,7.44042898]
[1770242046285,3.87142186,2113.5,2112.6,7.44042898]
[1770242046479,0.23709,2113.6,2112.7,0.96644361]
[1770242046787,7.64454881,2113.4,2111.9,7.44042898]
[1770242046982,7.64454881,2113.4,2112.3,0.96644361]
[1770242047182,7.64454881,2113.4,2112.5,0.96644361]
[1770242047381,7.64454881,2113.4,2112.2,7.44042898]
[1770242047382,7.88164881,2113.4,2112.4,0.96644361]
[1770242047580,7.88169881,2113.0,2111.9,7.44042898]
[1770242048088,0.23715,2113.0,2112.0,7.44042898]
[1770242048289,0.23715,2113.0,2112.3,0.96644361]
[1770242048688,0.23715,2113.0,2112.5,0.96644361]
[1770242048889,0.23715,2113.0,2112.3,0.96644361]
[1770242049096,0.23715,2113.0,2112.0,7.44042898]
[1770242049097,0.23715,2113.0,2112.4,0.96644361]
[1770242049290,0.23715,2113.0,2112.2,0.96644361]
[1770242049491,11.82068664,2112.9,2112.0,7.44042898]
[1770242049789,7.88170881,2112.9,2111.7,7.44042898]
[1770242049990,7.88170881,2112.9,2111.9,0.96644361]
[1770242050192,0.2372,2112.6,2111.7,7.44042898]
[1770242050692,0.2372,2112.6,2111.9,0.96644361]
[1770242051085,0.2372,2112.6,2112.0,0.96644361]
[1770242051282,0.2372,2112.6,2111.9,0.96644361]
[1770242051684,0.2372,2112.6,2112.0,0.96644361]
[1770242051888,0.2372,2112.6,2111.9,0.96644361]
[1770242052282,0.2372,2112.6,2112.0,0.96644361]
[1770242052796,0.2372,2112.6,2112.1,0.96644361]
[1770242053095,0.2372,2112.6,2112.0,0.96644361]
[1770242053588,0.23724,2112.2,2111.6,0.9471]
[1770242053795,0.23724,2112.2,2111.4,7.44042898]
[1770242054289,0.23724,2112.2,2111.8,0.73490271]
[1770242054691,0.24150171,2112.2,2112.0,0.73490271]
[1770242054894,0.24150171,2112.2,2111.9,0.73490271]
[1770242055189,40.28629801,2112.7,2112.1,1.68180271]
[1770242055190,0.23718,2112.7,2112.1,1.68180271]
[1770242055491,0.23718,2112.7,2112.1,0.9469]
[1770242055691,7.88172881,2112.7,2112.2,0.73490271]
[1770242056094,7.88172881,2112.7,2112.3,0.73490271]
[1770242056294,7.88680299,2112.7,2112.2,0.73490271]
[1770242057188,7.88680299,2112.7,2112.3,0.73490271]
[1770242057385,7.88680299,2112.7,2112.2,0.73490271]
[1770242057789,7.88175881,2112.5,2112.1,0.9469]
[1770242058599,0.00507418,2112.7,2112.1,8.38732898]
[1770242059492,0.23711,2113.4,2112.1,8.38732898]
[1770242059696,3.93856229,2113.3,2112.1,8.38732898]
[1770242059995,0.23711,2113.4,2112.1,8.38732898]
[1770242060297,0.23716,2113.0,2112.1,8.38732898]
[1770242060493,0.24319091,2113.0,2112.1,8.38732898]
[1770242061596,0.23711,2113.4,2112.1,8.38732898]
[1770242061891,0.23709,2113.5,2112.3,7.44042898]
[1770242062092,7.79171044,2114.2,2112.3,7.44042898]
[1770242062093,48.40484682,2114.5,2112.7,7.67760898]
[1770242062398,5.04149452,2114.4,2112.7,7.67760898]
[1770242062696,3.95130452,2114.3,2112.7,7.67760898]
[1770242062892,0.23707,2113.7,2112.7,7.44042898]
[1770242064096,3.94893103,2113.6,2112.7,7.44042898]
[1770242064301,0.23701,2114.2,2112.7,7.44042898]
[1770242064595,0.23701,2114.2,2112.7,7.67760898]
[1770242064802,0.23701,2114.2,2112.9,6.92804664]
[1770242065096,0.00516518,2114.4,2112.9,7.16520664]
[1770242065602,8.05403748,2114.0,2112.9,6.92804664]
[1770242065798,0.00516518,2114.4,2112.9,7.16520664]
[1770242066095,0.23706,2113.8,2112.9,6.92804664]
[1770242066302,0.24216518,2114.4,2112.9,6.92804664]
[1770242066499,3.95032108,2114.3,2112.9,6.92804664]
[1770242066699,0.24216518,2114.4,2112.9,7.16520664]
[1770242067298,12.00489946,2114.3,2112.9,6.92804664]
[1770242067498,0.23704,2114.0,2112.9,6.92804664]
[1770242068403,6.96365748,2114.2,2112.9,6.92804664]
[1770242068598,3.95116604,2114.1,2112.9,6.92804664]
[1770242068803,8.05409748,2113.9,2112.9,6.92804664]
[1770242069105,0.23707,2113.7,2112.9,6.92804664]
[1770242070505,0.23707,2113.7,2112.9,6.42804664]
[1770242071400,7.20079748,2113.1,2112.1,0.9469]
[1770242071610,0.23716,2112.9,2112.1,0.9469]
[1770242071803,0.23721,2112.5,2112.1,0.9469]
[1770242073406,6.96365748,2112.4,2112.1,0.9469]
[1770242073607,0.23721,2112.5,2111.8,0.9469]
[1770242073807,7.20086748,2112.5,2111.8,0.9469]
[1770242074108,7.20086748,2112.5,2111.5,6.92804664]
[1770242074401,0.474,2112.7,2111.6,0.9469]
[1770242074402,6.96365748,2112.3,2111.6,0.9469]
[1770242074607,6.96365748,2112.3,2111.6,0.00539897]
[1770242074802,6.96365748,2112.6,2111.7,0.9469]
[1770242075002,0.474,2112.7,2111.8,0.00398897]
[1770242075206,0.474,2112.7,2111.9,0.9469]
[1770242076108,0.474,2112.7,2112.1,0.00398897]
[1770242076510,0.474,2112.7,2112.2,0.9469]
[1770242077006,0.474,2112.7,2111.7,0.9457]
[1770242077007,6.96365748,2112.6,2111.7,0.9457]
[1770242077213,7.20087748,2112.4,2111.7,0.9457]
[1770242077407,7.20087748,2112.4,2111.8,0.9469]
[1770242079505,0.23722,2112.4,2111.8,0.9469]
[1770242079711,0.23722,2112.4,2112.0,0.00398897]
[1770242080113,0.23722,2112.4,2112.1,0.95088897]
[1770242080308,0.23722,2112.4,2111.9,0.95088897]
[1770242081012,7.20087748,2112.4,2111.9,0.9469]
[1770242081212,0.23722,2112.4,2111.9,7.87893561]
[1770242081407,0.474,2112.7,2112.2,6.93203561]
[1770242081709,0.00597469,2112.9,2112.3,0.00398897]
[1770242081910,0.00597469,2112.9,2112.4,6.93203561]
[1770242082110,0.00597469,2112.9,2112.5,0.00398897]
[1770242082413,0.00597469,2112.9,2112.5,0.95088897]
[1770242083412,0.00597469,2112.9,2112.6,0.00398897]
[1770242083910,0.23718,2112.8,2111.8,6.92804664]
[1770242084210,0.23718,2112.8,2111.9,7.87893561]
[1770242084509,0.00597469,2112.9,2112.5,6.92804664]
[1770242085008,6.96963217,2112.9,2112.6,0.9469]
[1770242085205,0.23718,2112.8,2111.9,7.87494664]
[1770242085914,0.00597469,2112.9,2111.9,7.87494664]
[1770242086313,0.00597469,2112.9,2112.1,6.92804664]
[1770242086516,0.474,2113.2,2112.1,6.92804664]
[1770242086714,0.474,2113.2,2112.3,6.92804664]
[1770242086910,6.69739174,2113.7,2112.3,6.92804664]
[1770242086911,0.23709,2113.6,2112.3,0.23722]
[1770242087115,7.20074748,2113.6,2112.4,0.9469]
[1770242087315,7.20076748,2113.4,2112.4,0.9469]
[1770242087511,7.2064166,2113.4,2112.4,0.9469]
[1770242088016,7.2064166,2113.4,2112.0,0.474]
[1770242088017,7.2064166,2113.4,2112.5,0.9469]
[1770242088317,7.2064166,2113.4,2112.2,0.32867755]
[1770242088516,7.2064166,2113.4,2112.3,0.9469]
[1770242089516,7.2064166,2113.4,2112.3,1.19247537]
[1770242090412,7.2064166,2113.4,2112.4,0.12777682]
[1770242090613,0.24275912,2113.4,2112.4,0.12777682]
[1770242090818,0.24275912,2113.4,2112.6,0.12777682]
[1770242091017,7.43765748,2113.7,2112.6,0.12777682]
[1770242091218,7.43765748,2113.7,2112.7,0.9469]
[1770242092019,0.43866508,2113.7,2112.8,0.04071429]
[1770242092215,5.3715064,2114.6,2113.4,0.2371]
[1770242092415,7.20064748,2114.5,2112.9,0.9469]
[1770242092816,7.20064748,2114.5,2113.0,0.9465]
[1770242093319,7.20543692,2114.5,2113.1,0.9469]
[1770242093519,7.20543692,2114.5,2113.2,0.23713]
[1770242093922,7.20543692,2114.5,2113.3,0.9469]
[1770242094527,7.03209863,2114.2,2113.3,0.9469]
[1770242094722,0.23703,2114.1,2113.3,0.9469]
[1770242094925,6.79507863,2114.0,2113.3,0.9469]
[1770242096021,0.23703,2114.1,2113.3,0.9469]
[1770242096219,6.79954088,2114.1,2113.3,0.9469]
[1770242096422,7.03657088,2114.1,2113.3,0.9469]
[1770242096822,7.03658088,2114.0,2113.3,0.9469]
[1770242097228,7.03658088,2114.0,2113.4,0.9469]
[1770242097428,7.03658088,2114.0,2113.1,0.9469]
[1770242097730,1.09492944,2114.5,2113.1,0.9469]
[1770242097731,6.80406207,2114.5,2113.4,0.2371]
[1770242098022,6.8403771,2114.2,2113.1,0.9469]
[1770242099223,7.07650554,2114.0,2113.1,0.9469]
[1770242100128,7.01880235,2113.9,2113.1,0.9469]
[1770242100626,6.78175235,2113.7,2113.1,0.9469]
[1770242101229,6.78160345,2114.0,2113.1,0.9469]
[1770242101423,0.474,2114.3,2113.1,0.9469]
[1770242101623,0.474,2114.3,2113.0,0.95223998]
[1770242101624,6.78160345,2115.3,2113.8,1.09049]
[1770242101829,6.78160345,2115.0,2113.9,0.9469]
[1770242102131,7.01853345,2115.0,2113.6,0.23708]
[1770242102326,7.01853345,2115.0,2113.7,0.9469]
[1770242102527,7.02259088,2115.0,2113.7,1.18397]
[1770242102731,6.78566088,2115.0,2113.8,0.23706]
[1770242102927,0.00405743,2115.0,2114.0,0.23703]
[1770242103331,6.77954663,2115.0,2114.1,0.9469]
[1770242103629,6.77954663,2115.0,2113.7,0.23707]
[1770242104022,6.77954663,2115.0,2113.8,0.9469]
[1770242104426,1.08958,2115.6,2113.8,0.9469]
[1770242104427,6.79553571,2115.9,2114.6,0.23696]
[1770242104623,18.84285637,2116.3,2114.1,1.09029]
[1770242104624,7.03238571,2115.7,2114.1,0.23702]
[1770242104830,6.79553571,2115.5,2114.2,0.9469]
[1770242105232,6.79534256,2115.2,2114.2,0.9469]
[1770242105427,6.79997582,2115.2,2114.2,0.95208121]
[1770242105633,6.79534256,2115.0,2114.2,0.95208121]
[1770242106134,6.80013199,2115.0,2114.2,0.95208121]
[1770242106329,6.79534256,2115.0,2114.2,0.95208121]
[1770242106628,0.00463326,2115.2,2114.3,0.9469]
[1770242106834,6.82127492,2115.2,2114.3,0.9469]
[1770242107030,0.00463326,2115.2,2114.4,0.23699]
[1770242107230,0.473,2115.8,2114.6,0.23697]
[1770242107231,7.28927181,2115.8,2114.6,0.23697]
[1770242107429,7.28927181,2115.8,2114.4,0.9469]
[1770242107628,6.81627181,2116.1,2114.7,1.09002]
[1770242107834,6.81627181,2116.5,2115.0,0.23692]
[1770242108337,6.81057367,2116.3,2115.1,0.9469]
[1770242108737,6.81057367,2116.3,2115.1,1.18381]
[1770242109038,6.81057367,2116.3,2115.3,0.23689]
[1770242109232,0.00558411,2116.5,2115.4,0.23687]
[1770242109433,6.81582844,2116.5,2115.4,0.23687]
[1770242109634,6.81582844,2116.5,2115.5,0.9469]
[1770242111838,6.81582844,2116.5,2115.5,1.18377]
[1770242112138,0.00558411,2116.5,2115.5,1.18377]
[1770242112937,6.81814945,2116.5,2115.5,1.18377]
[1770242113339,0.00558411,2116.5,2115.6,1.18215]
[1770242113839,0.00558411,2116.5,2115.7,0.9469]
[1770242114038,6.81395677,2116.4,2115.7,0.95209957]
[1770242114238,6.80916734,2116.4,2115.7,0.95209957]
[1770242114439,6.80916734,2116.4,2115.8,0.9469]
[1770242114637,0.00558411,2116.5,2115.8,0.9469]
[1770242115641,6.81364122,2116.3,2115.8,0.9469]
[1770242115842,0.00478943,2116.3,2115.8,0.9469]
[1770242116142,0.00558411,2116.5,2115.8,0.9469]
[1770242116143,0.00478943,2116.2,2115.8,0.9469]
[1770242116438,0.00478943,2116.5,2115.9,0.9469]
[1770242116634,6.81411912,2116.5,2115.9,0.9469]
[1770242116839,0.23673,2116.8,2115.9,0.9469]
[1770242116840,6.81890855,2116.2,2115.9,0.9469]
[1770242117042,6.81411912,2116.2,2115.9,0.9469]
[1770242117232,0.00478943,2116.0,2115.9,0.9469]
[1770242117437,6.81377591,2115.9,2115.7,0.00519957]
[1770242117633,6.81856534,2115.7,2115.6,0.46646998]
[1770242118043,6.81377591,2115.7,2115.0,0.23692]
[1770242118238,6.81377591,2115.7,2115.1,1.40858055]
[1770242118438,6.81377591,2115.7,2114.6,0.23697]
[1770242118744,6.81377591,2115.7,2114.7,1.40858055]
[1770242119338,6.81377591,2115.7,2114.7,1.64554055]
[1770242119543,6.81377591,2115.7,2114.8,0.9456]
[1770242119837,6.81377591,2115.7,2114.8,1.18254]
[1770242120045,6.81377591,2115.7,2114.9,1.64551055]
[1770242120440,6.81377591,2115.7,2114.9,1.40858055]
[1770242122444,6.81377591,2115.7,2114.9,1.64551055]
[1770242122846,6.81377591,2115.7,2114.9,1.40858055]
[1770242123941,0.24190581,2116.0,2114.8,0.9456]
[1770242124243,5.74534001,2116.0,2115.0,0.23692]
[1770242124449,0.23672,2116.9,2115.1,1.08982]
[1770242124645,0.23672,2116.9,2115.6,0.23685]
[1770242125049,0.24069612,2116.9,2115.7,1.40858055]
[1770242126549,6.01145875,2116.8,2115.7,1.40858055]
[1770242126747,6.01145875,2116.8,2115.9,0.23682]
[1770242127154,6.01145875,2116.8,2116.0,1.40858055]
[1770242128450,6.01145875,2116.8,2116.0,1.64539055]
[1770242128650,6.01145875,2116.8,2116.0,1.40858055]
[1770242129255,5.23128785,2116.4,2114.9,0.43181569]
[1770242129455,5.23128785,2116.2,2114.9,0.23693]
[1770242130253,5.23128785,2116.2,2114.8,0.9456]
[1770242130254,5.21831364,2116.0,2114.8,0.9456]
[1770242130458,5.21831364,2115.8,2114.8,0.9456]
[1770242130758,5.69131364,2115.8,2114.8,0.9456]
[1770242132160,5.69131364,2115.8,2114.8,1.18254]
[1770242132458,5.69131364,2115.8,2114.8,0.9456]
[1770242132661,5.23536606,2115.6,2114.8,0.9456]
[1770242133860,5.23536606,2115.6,2113.4,10.51602438]
[1770242133861,5.23548659,2115.2,2113.8,0.23705]
[1770242134756,5.19005065,2115.0,2113.9,0.23705]
[1770242135364,5.19005065,2115.0,2114.1,0.23702]
[1770242137662,0.00606412,2115.2,2114.2,0.04808403]
[1770242137857,0.00606412,2115.2,2114.2,0.28509403]
[1770242138062,0.00606412,2115.2,2114.3,0.23699]
[1770242138362,5.19005065,2115.0,2113.8,0.00600118]
[1770242142965,5.19005065,2115.0,2113.8,0.24306118]
[1770242143861,5.42704065,2114.5,2112.9,0.473]
[1770242144059,5.42706065,2114.3,2112.9,0.71015]
[1770242144866,5.42706065,2114.3,2113.0,0.23715]
[1770242145165,5.19005065,2114.3,2112.9,0.47697623]
[1770242145360,5.19005065,2114.3,2113.5,0.23709]
[1770242145958,5.19005065,2114.3,2113.7,0.23707]
[1770242146165,0.473,2114.9,2114.0,0.23704]
[1770242147572,0.473,2114.9,2113.1,0.23387633]
[1770242147770,0.473,2114.9,2113.0,0.23714]
[1770242147771,0.23696,2114.7,2113.0,0.23714]
[1770242148069,0.23696,2114.7,2113.1,0.23714]
[1770242148268,5.19005065,2114.6,2113.1,0.23714]
[1770242149476,5.19005065,2114.6,2113.0,0.17830988]
[1770242149669,5.19005065,2114.6,2113.3,0.23711]
[1770242150470,5.19005065,2114.6,2113.4,0.2371]
[1770242150867,5.19005065,2114.6,2113.3,0.24520746]
[1770242151173,5.19005065,2114.6,2113.8,0.23706]
[1770242158575,5.19005065,2114.6,2114.0,0.23704]
[1770242158779,5.21009928,2114.9,2114.0,0.23704]
[1770242159276,5.21009928,2114.9,2114.1,0.23702]
[1770242159472,0.00606412,2115.2,2114.5,0.23698]
[1770242159773,0.00606412,2115.2,2114.6,0.23697]
[1770242159976,0.00606412,2115.2,2114.5,0.00382131]
[1770242159977,0.473,2116.0,2114.8,0.23694]
[1770242160175,3.78212142,2115.9,2114.8,0.23694]
[1770242160369,0.23685,2115.7,2114.5,0.00382131]
[1770242160573,4.25728257,2115.6,2114.5,0.00382131]
[1770242160774,0.473,2115.6,2114.9,0.23693]
[1770242160976,0.47881323,2115.6,2114.9,0.23693]
[1770242161181,0.00581323,2115.6,2114.9,0.23693]
[1770242161578,4.67876709,2115.6,2114.9,0.23693]
[1770242162677,0.473,2116.0,2115.1,0.23691]
[1770242162875,13.5652429,2116.9,2115.6,0.23685]
[1770242163178,0.473,2116.8,2115.2,0.945]
[1770242163377,3.75620921,2116.7,2115.2,0.945]
[1770242163677,0.0050932,2116.7,2115.2,0.945]
[1770242164270,3.75020222,2116.6,2115.2,0.945]
[1770242164475,3.75020222,2116.5,2115.2,0.945]
[1770242164780,4.63607388,2116.3,2115.2,0.945]
[1770242165880,4.63607388,2116.1,2114.5,0.00382131]
[1770242166378,4.63607388,2116.1,2114.5,3.33177074]
[1770242166579,4.63607388,2116.1,2114.7,3.32794943]
[1770242166778,4.63607388,2116.1,2115.0,3.56486943]
[1770242166978,4.63607388,2116.1,2115.1,0.23691]
[1770242167370,4.63607388,2116.1,2115.1,3.34309546]
[1770242167571,4.63607388,2116.6,2115.1,3.34309546]
[1770242167977,4.63607388,2116.6,2115.4,0.23687]
[1770242168181,4.63607388,2116.1,2114.5,0.00382131]
[1770242168477,4.63607388,2116.1,2114.6,0.23697]
[1770242168779,4.63607388,2116.1,2114.8,0.23694]
[1770242169476,4.63607388,2116.1,2115.0,0.23692]
[1770242169681,4.63607388,2116.1,2115.3,0.23689]
[1770242170985,4.63607388,2116.1,2114.8,0.23695]
[1770242171181,4.63607388,2116.1,2114.6,3.17850923]
[1770242171385,4.63607388,2116.1,2115.1,0.23691]
[1770242172286,4.63607388,2116.6,2115.5,0.23687]
[1770242172478,4.63607388,2116.6,2115.1,0.23691]
[1770242174391,4.63607388,2116.6,2115.4,0.23688]
[1770242174586,4.63607388,2116.6,2115.2,2.99925931]
[1770242174789,4.63607388,2116.6,2115.3,2.99925931]
[1770242174994,4.63607388,2116.6,2115.7,0.23684]
[1770242175194,4.63607388,2116.6,2115.8,0.23683]
[1770242175787,4.63607388,2116.6,2115.9,0.23682]
[1770242175991,4.63607388,2116.6,2115.4,0.23688]
[1770242181599,4.87282388,2116.6,2115.0,0.23692]
[1770242182999,4.63607388,2116.1,2114.6,0.23696]
[1770242183198,4.63607388,2116.1,2114.9,0.23693]
[1770242184805,4.87288388,2116.1,2114.5,0.24079131]
[1770242185302,4.17925433,2115.9,2114.5,0.24079131]
[1770242185501,4.65225433,2115.9,2114.5,0.24079131]
[1770242186200,4.17925433,2115.7,2114.5,0.24079131]
[1770242189602,4.17925433,2115.5,2114.5,0.24079131]
[1770242189810,4.17925433,2115.5,2114.7,0.23695]
[1770242190003,4.17925433,2115.5,2114.8,0.23694]
[1770242192204,4.17925433,2115.5,2114.5,0.00382131]
[1770242192410,4.41612433,2115.5,2114.1,0.23702]
[1770242192612,4.17925433,2115.3,2114.1,0.23702]
[1770242192811,4.17925433,2115.1,2113.9,0.473]
[1770242193610,4.17925433,2114.9,2113.9,0.47822243]
[1770242194310,4.17925433,2114.9,2113.9,0.00522243]
[1770242194610,4.17925433,2114.9,2113.5,0.23709]
[1770242194911,4.17925433,2114.7,2113.5,0.23709]
[1770242195304,4.17925433,2114.5,2113.1,0.473]
[1770242195811,4.17925433,2114.5,2113.1,0.47764722]
[1770242196311,4.17925433,2114.5,2113.1,0.00464722]
[1770242199314,4.17925433,2114.5,2113.1,2.29161472]
[1770242199515,4.17925433,2114.5,2113.4,2.2869675]
[1770242199715,4.17925433,2114.5,2113.8,0.23706]
[1770242201409,4.17925433,2114.5,2113.3,0.23711]
[1770242203115,4.17925433,2114.5,2113.6,0.23708]
[1770242206017,4.17925433,2114.5,2113.7,0.23707]
[1770242207211,4.17925433,2114.8,2113.7,1.91469581]
[1770242207413,3.59110433,2114.8,2114.0,3.59322581]
[1770242207617,0.473,2115.8,2114.5,0.23698]
[1770242207919,0.473,2115.8,2114.7,0.23695]
[1770242208620,0.47711334,2115.8,2114.7,0.00501665]
[1770242208817,0.47711334,2115.8,2114.7,2.49362542]
[1770242209018,0.47711334,2115.8,2114.7,0.00501665]
[1770242209512,4.17925433,2115.7,2114.7,0.00501665]
[1770242210016,4.17925433,2115.7,2114.7,0.24196665]
[1770242210412,4.17925433,2115.7,2114.2,0.23701]
[1770242211417,4.17925433,2115.7,2114.2,0.24249494]
[1770242211720,4.17925433,2115.7,2114.5,2.38311099]
[1770242212617,4.17925433,2115.7,2114.8,0.23694]
[1770242212916,4.17925433,2115.7,2114.4,0.23699]
[1770242214319,4.17925433,2115.7,2114.2,0.00548494]